[Event "January 9 Late 2024"]
[Site "https://www.chess.com"]
[Date "2024.01.09"]
[Round "2"]
[White "Vila Dupla, Aurelio"]
[Black "Grochal, Joey"]
[Result "0-1"]
[Board "219"]
[TimeControl "180+1"]
[WhiteFideId "2203383"]
[BlackFideId "1019945"]
[WhiteElo "2165"]
[BlackElo "2474"]
[WhiteTeam "ESP"]
[BlackTeam "NED"]
[WhiteClock "0:00:01"]
[BlackClock "0:00:49"]

1. Nf3 {[%clk 0:03:00]}  Nf6 {[%clk 0:02:59]} 2. d4 {[%clk 0:02:59]}  g6 {[%clk 0:02:59]} 3. g3 {[%clk 0:02:57]}  Bg7 {[%clk 0:02:59]} 4. Bg2 {[%clk 0:02:57]}  O-O {[%clk 0:03:00]} 5. O-O {[%clk 0:02:58]}  d6 {[%clk 0:03:00]} 6. c4 {[%clk 0:02:58]}  Nbd7 {[%clk 0:02:56]} 7. Nc3 {[%clk 0:02:57]}  e5 {[%clk 0:02:57]} 8. h3 {[%clk 0:02:57]}  e4 {[%clk 0:02:55]} 9. Ng5 {[%clk 0:02:56]}  Nb6 {[%clk 0:02:48]} 10. c5 {[%clk 0:02:35]}  Nbd5 {[%clk 0:02:44]} 11. cxd6 {[%clk 0:02:29]}  Nxc3 {[%clk 0:02:41]} 12. bxc3 {[%clk 0:02:22]}  Re8 {[%clk 0:02:42]} 13. Qb3 {[%clk 0:02:12]}  Qd7 {[%clk 0:02:42]} 14. dxc7 {[%clk 0:02:07]}  h6 {[%clk 0:02:42]} 15. Nxf7 {[%clk 0:01:35]}  Qxf7 {[%clk 0:02:43]} 16. Bf4 {[%clk 0:01:34]}  Nd5 {[%clk 0:02:33]} 17. Bd6 {[%clk 0:01:11]}  Nb6 {[%clk 0:02:23]} 18. Qc2 {[%clk 0:00:53]}  Qd5 {[%clk 0:02:07]} 19. Bc5 {[%clk 0:00:51]}  Bd7 {[%clk 0:01:54]} 20. a4 {[%clk 0:00:45]}  Nc4 {[%clk 0:01:49]} 21. Rfb1 {[%clk 0:00:33]}  Bc6 {[%clk 0:01:49]} 22. Rb4 {[%clk 0:00:26]}  Rac8 {[%clk 0:01:35]} 23. Qa2 {[%clk 0:00:20]}  Nb6 {[%clk 0:01:21]} 24. Bxb6 {[%clk 0:00:17]}  Qxa2 {[%clk 0:01:19]} 25. Rxa2 {[%clk 0:00:17]}  axb6 {[%clk 0:01:20]} 26. Rxb6 {[%clk 0:00:17]}  Rxc7 {[%clk 0:01:20]} 27. a5 {[%clk 0:00:17]}  Bd5 {[%clk 0:01:19]} 28. Rab2 {[%clk 0:00:16]}  Kh7 {[%clk 0:01:13]} 29. Rd6 {[%clk 0:00:11]}  Bf7 {[%clk 0:01:07]} 30. Rdb6 {[%clk 0:00:10]}  Ree7 {[%clk 0:01:06]} 31. a6 {[%clk 0:00:09]}  bxa6 {[%clk 0:01:06]} 32. Rxa6 {[%clk 0:00:10]}  Rxc3 {[%clk 0:01:06]} 33. e3 {[%clk 0:00:09]}  Rc1+ {[%clk 0:01:05]} 34. Kh2 {[%clk 0:00:09]}  Rec7 {[%clk 0:00:55]} 35. Rab6 {[%clk 0:00:06]}  R1c2 {[%clk 0:00:54]} 36. g4 {[%clk 0:00:06]}  Rxb2 {[%clk 0:00:54]} 37. Rxb2 {[%clk 0:00:05]}  Bd5 {[%clk 0:00:54]} 38. Kg3 {[%clk 0:00:05]}  g5 {[%clk 0:00:49]} 39. Rb5 {[%clk 0:00:04]}  Rd7 {[%clk 0:00:50]} 40. Rc5 {[%clk 0:00:04]}  Bf8 {[%clk 0:00:50]} 41. h4 {[%clk 0:00:04]}  Bd6+ {[%clk 0:00:49]} 42. Kh3 {[%clk 0:00:01]}  Bxc5 {[%clk 0:00:49]} 0-1

[Event "January 9 Late 2024"]
[Site "https://www.chess.com"]
[Date "2024.01.09"]
[Round "2"]
[White "Pesotskiy, Mikhail"]
[Black "Feliz Dotel, Dewar Bienvenido"]
[Result "1-0"]
[Board "220"]
[TimeControl "180+1"]
[WhiteFideId "34164453"]
[BlackFideId "6402801"]
[WhiteElo "2472"]
[BlackElo "2163"]
[WhiteTeam "RUS"]
[BlackTeam "DOM"]
[WhiteClock "0:02:30"]
[BlackClock "0:00:52"]

1. d4 {[%clk 0:03:00]}  Nf6 {[%clk 0:02:54]} 2. c4 {[%clk 0:03:00]}  g6 {[%clk 0:02:54]} 3. Nc3 {[%clk 0:03:01]}  d5 {[%clk 0:02:53]} 4. Bg5 {[%clk 0:03:00]}  Bg7 {[%clk 0:02:51]} 5. Bxf6 {[%clk 0:02:59]}  Bxf6 {[%clk 0:02:51]} 6. cxd5 {[%clk 0:03:00]}  c5 {[%clk 0:02:51]} 7. dxc5 {[%clk 0:03:00]}  O-O {[%clk 0:02:50]} 8. Nf3 {[%clk 0:03:00]}  Nd7 {[%clk 0:02:50]} 9. c6 {[%clk 0:02:55]}  bxc6 {[%clk 0:02:50]} 10. dxc6 {[%clk 0:02:56]}  Ne5 {[%clk 0:02:43]} 11. Qxd8 {[%clk 0:02:42]}  Rxd8 {[%clk 0:02:40]} 12. Nxe5 {[%clk 0:02:41]}  Bxe5 {[%clk 0:02:39]} 13. Rc1 {[%clk 0:02:41]}  Ba6 {[%clk 0:01:47]} 14. e3 {[%clk 0:02:40]}  Bxf1 {[%clk 0:01:41]} 15. Rxf1 {[%clk 0:02:40]}  Bxc3+ {[%clk 0:01:38]} 16. Rxc3 {[%clk 0:02:39]}  Rac8 {[%clk 0:01:39]} 17. Ke2 {[%clk 0:02:39]}  Rd5 {[%clk 0:01:35]} 18. Rd1 {[%clk 0:02:35]}  Rb5 {[%clk 0:01:28]} 19. c7 {[%clk 0:02:34]}  Rxb2+ {[%clk 0:00:52]} 20. Kf3 {[%clk 0:02:30]} 1-0

[Event "January 9 Late 2024"]
[Site "https://www.chess.com"]
[Date "2024.01.09"]
[Round "2"]
[White "Silva Lucena, Cristian"]
[Black "Ivanov, Aleksandr"]
[Result "1-0"]
[Board "222"]
[TimeControl "180+1"]
[WhiteFideId "2232588"]
[BlackFideId "2092980"]
[WhiteElo "2471"]
[BlackElo "2149"]
[WhiteTeam "ESP"]
[BlackTeam "USA"]
[WhiteClock "0:01:14"]
[BlackClock "0:00:05"]

1. Nf3 {[%clk 0:03:00]}  d5 {[%clk 0:02:59]} 2. c4 {[%clk 0:03:00]}  e6 {[%clk 0:02:59]} 3. g3 {[%clk 0:03:00]}  c6 {[%clk 0:02:59]} 4. Bg2 {[%clk 0:03:01]}  dxc4 {[%clk 0:02:59]} 5. a4 {[%clk 0:03:00]}  Nf6 {[%clk 0:02:34]} 6. Na3 {[%clk 0:02:59]}  Nbd7 {[%clk 0:02:28]} 7. Nxc4 {[%clk 0:02:58]}  Be7 {[%clk 0:02:27]} 8. O-O {[%clk 0:02:57]}  O-O {[%clk 0:02:27]} 9. a5 {[%clk 0:02:58]}  Rb8 {[%clk 0:02:16]} 10. d3 {[%clk 0:02:55]}  Nd5 {[%clk 0:02:06]} 11. e4 {[%clk 0:02:53]}  Nc7 {[%clk 0:02:05]} 12. Bf4 {[%clk 0:02:44]}  Ra8 {[%clk 0:01:56]} 13. h4 {[%clk 0:02:40]}  f6 {[%clk 0:01:55]} 14. Bh3 {[%clk 0:02:34]}  e5 {[%clk 0:01:49]} 15. Be3 {[%clk 0:02:33]}  Nc5 {[%clk 0:01:43]} 16. Bxc8 {[%clk 0:02:32]}  Qxc8 {[%clk 0:01:41]} 17. b4 {[%clk 0:02:27]}  N5e6 {[%clk 0:01:38]} 18. Rb1 {[%clk 0:02:25]}  Nb5 {[%clk 0:01:38]} 19. Qc2 {[%clk 0:02:15]}  Qd7 {[%clk 0:01:33]} 20. Rfd1 {[%clk 0:02:14]}  Rfd8 {[%clk 0:01:29]} 21. Kg2 {[%clk 0:02:15]}  Ned4 {[%clk 0:01:15]} 22. Nxd4 {[%clk 0:02:12]}  Nxd4 {[%clk 0:01:14]} 23. Bxd4 {[%clk 0:02:13]}  Qxd4 {[%clk 0:01:14]} 24. Rb3 {[%clk 0:02:08]}  Bf8 {[%clk 0:01:13]} 25. Rdb1 {[%clk 0:02:07]}  a6 {[%clk 0:01:12]} 26. Ne3 {[%clk 0:02:07]}  g6 {[%clk 0:01:08]} 27. Qc4+ {[%clk 0:02:06]}  Kg7 {[%clk 0:01:08]} 28. Qxd4 {[%clk 0:02:04]}  Rxd4 {[%clk 0:01:08]} 29. Kf3 {[%clk 0:02:04]}  Rad8 {[%clk 0:01:07]} 30. Ke2 {[%clk 0:02:04]}  R8d7 {[%clk 0:00:58]} 31. h5 {[%clk 0:02:04]}  Be7 {[%clk 0:00:53]} 32. f4 {[%clk 0:02:01]}  Bd6 {[%clk 0:00:49]} 33. hxg6 {[%clk 0:01:54]}  hxg6 {[%clk 0:00:49]} 34. Nc4 {[%clk 0:01:54]}  Bc7 {[%clk 0:00:42]} 35. Rh1 {[%clk 0:01:54]}  Rd8 {[%clk 0:00:37]} 36. Ke3 {[%clk 0:01:49]}  Bb8 {[%clk 0:00:36]} 37. Ke2 {[%clk 0:01:45]}  exf4 {[%clk 0:00:35]} 38. gxf4 {[%clk 0:01:44]}  Bxf4 {[%clk 0:00:35]} 39. Rh3 {[%clk 0:01:40]}  Rh8 {[%clk 0:00:25]} 40. Rxh8 {[%clk 0:01:38]}  Kxh8 {[%clk 0:00:24]} 41. Kf3 {[%clk 0:01:39]}  Bc7 {[%clk 0:00:22]} 42. Ke3 {[%clk 0:01:39]}  Be5 {[%clk 0:00:17]} 43. Nd2 {[%clk 0:01:37]}  Bd6 {[%clk 0:00:16]} 44. Nc4 {[%clk 0:01:33]}  Be5 {[%clk 0:00:16]} 45. Rb1 {[%clk 0:01:34]}  Kg7 {[%clk 0:00:14]} 46. Rh1 {[%clk 0:01:34]}  Rd8 {[%clk 0:00:13]} 47. Kd2 {[%clk 0:01:28]}  Bd4 {[%clk 0:00:13]} 48. Kc2 {[%clk 0:01:27]}  Rh8 {[%clk 0:00:13]} 49. Rxh8 {[%clk 0:01:26]}  Kxh8 {[%clk 0:00:13]} 50. Nd6 {[%clk 0:01:27]}  b6 {[%clk 0:00:11]} 51. Nf7+ {[%clk 0:01:18]}  Kg7 {[%clk 0:00:09]} 52. Nd8 {[%clk 0:01:18]}  bxa5 {[%clk 0:00:09]} 53. Ne6+ {[%clk 0:01:18]}  Kh6 {[%clk 0:00:07]} 54. Nxd4 {[%clk 0:01:17]}  g5 {[%clk 0:00:08]} 55. bxa5 {[%clk 0:01:16]}  g4 {[%clk 0:00:07]} 56. Kd2 {[%clk 0:01:17]}  Kg5 {[%clk 0:00:08]} 57. Ke3 {[%clk 0:01:17]}  Kh4 {[%clk 0:00:08]} 58. Kf4 {[%clk 0:01:14]}  g3 {[%clk 0:00:05]} 59. Nf5+ {[%clk 0:01:14]} 1-0

[Event "January 9 Late 2024"]
[Site "https://www.chess.com"]
[Date "2024.01.09"]
[Round "2"]
[White "Ottosen, David"]
[Black "Nikologorsky, Matfei"]
[Result "0-1"]
[Board "224"]
[TimeControl "180+1"]
[WhiteFideId "2603080"]
[BlackFideId "24102474"]
[WhiteElo "2137"]
[BlackElo "2470"]
[WhiteTeam "CAN"]
[BlackTeam "FID"]
[WhiteClock "0:00:24"]
[BlackClock "0:00:20"]

1. e4 {[%clk 0:03:00]}  c5 {[%clk 0:02:59]} 2. Nf3 {[%clk 0:02:58]}  e6 {[%clk 0:02:59]} 3. d4 {[%clk 0:02:59]}  cxd4 {[%clk 0:02:59]} 4. Nxd4 {[%clk 0:03:00]}  a6 {[%clk 0:03:00]} 5. Bd3 {[%clk 0:03:00]}  Qc7 {[%clk 0:02:59]} 6. O-O {[%clk 0:03:00]}  Nf6 {[%clk 0:02:59]} 7. Re1 {[%clk 0:03:00]}  d6 {[%clk 0:02:58]} 8. a4 {[%clk 0:02:58]}  Be7 {[%clk 0:02:55]} 9. Be3 {[%clk 0:02:57]}  O-O {[%clk 0:02:52]} 10. Nd2 {[%clk 0:02:56]}  Nbd7 {[%clk 0:02:49]} 11. a5 {[%clk 0:02:55]}  Rb8 {[%clk 0:02:31]} 12. c3 {[%clk 0:02:44]}  Nc5 {[%clk 0:02:17]} 13. Bc2 {[%clk 0:02:40]}  e5 {[%clk 0:02:12]} 14. Ne2 {[%clk 0:02:31]}  Bg4 {[%clk 0:02:08]} 15. f3 {[%clk 0:02:31]}  Bh5 {[%clk 0:02:08]} 16. Ng3 {[%clk 0:01:54]}  Bg6 {[%clk 0:02:07]} 17. Qe2 {[%clk 0:01:54]}  d5 {[%clk 0:01:47]} 18. Kh1 {[%clk 0:01:42]}  dxe4 {[%clk 0:01:46]} 19. Ndxe4 {[%clk 0:01:42]}  Ncxe4 {[%clk 0:01:45]} 20. Nxe4 {[%clk 0:01:42]}  Nxe4 {[%clk 0:01:45]} 21. fxe4 {[%clk 0:01:39]}  Rbc8 {[%clk 0:01:32]} 22. Bb6 {[%clk 0:01:37]}  Qc6 {[%clk 0:01:31]} 23. Ba4 {[%clk 0:01:34]}  Qf6 {[%clk 0:01:26]} 24. Bd7 {[%clk 0:01:25]}  Ra8 {[%clk 0:01:22]} 25. Rad1 {[%clk 0:01:21]}  Qh4 {[%clk 0:01:11]} 26. Bf2 {[%clk 0:01:18]}  Qf6 {[%clk 0:01:04]} 27. Rd5 {[%clk 0:01:13]}  Bd8 {[%clk 0:00:57]} 28. Red1 {[%clk 0:01:10]}  Bc7 {[%clk 0:00:47]} 29. Ba4 {[%clk 0:00:44]}  Rfd8 {[%clk 0:00:43]} 30. Rxd8+ {[%clk 0:00:43]}  Rxd8 {[%clk 0:00:42]} 31. Rxd8+ {[%clk 0:00:43]}  Qxd8 {[%clk 0:00:42]} 32. b4 {[%clk 0:00:40]}  h6 {[%clk 0:00:42]} 33. h3 {[%clk 0:00:37]}  Qd6 {[%clk 0:00:34]} 34. Bc5 {[%clk 0:00:36]}  Qd8 {[%clk 0:00:34]} 35. Bc2 {[%clk 0:00:27]}  Kh7 {[%clk 0:00:34]} 36. Qd3 {[%clk 0:00:26]}  Qxd3 {[%clk 0:00:33]} 37. Bxd3 {[%clk 0:00:27]}  f6 {[%clk 0:00:31]} 38. Kg1 {[%clk 0:00:24]}  Be8 {[%clk 0:00:31]} 39. Kf2 {[%clk 0:00:24]}  Kg6 {[%clk 0:00:31]} 40. Ke3 {[%clk 0:00:24]}  Kg5 {[%clk 0:00:30]} 41. g3 {[%clk 0:00:23]}  h5 {[%clk 0:00:29]} 42. Kf3 {[%clk 0:00:23]}  Bd7 {[%clk 0:00:28]} 43. Be3+ {[%clk 0:00:23]}  Kg6 {[%clk 0:00:28]} 44. h4 {[%clk 0:00:23]}  Bg4+ {[%clk 0:00:28]} 45. Kf2 {[%clk 0:00:23]}  Be6 {[%clk 0:00:29]} 46. c4 {[%clk 0:00:23]}  Kf7 {[%clk 0:00:25]} 47. c5 {[%clk 0:00:23]}  g6 {[%clk 0:00:23]} 48. Be2 {[%clk 0:00:21]}  Ke7 {[%clk 0:00:21]} 49. Kg2 {[%clk 0:00:21]}  Kd7 {[%clk 0:00:20]} 50. Kf2 {[%clk 0:00:21]}  Kc6 {[%clk 0:00:20]} 51. Ke1 {[%clk 0:00:21]}  Bd8 {[%clk 0:00:20]} 52. Kd2 {[%clk 0:00:21]}  Be7 {[%clk 0:00:20]} 53. Kc3 {[%clk 0:00:21]}  f5 {[%clk 0:00:20]} 54. Bf3 {[%clk 0:00:19]}  Kc7 {[%clk 0:00:20]} 55. exf5 {[%clk 0:00:19]}  Bxf5 {[%clk 0:00:20]} 56. Bg5 {[%clk 0:00:19]}  Bxg5 {[%clk 0:00:19]} 57. hxg5 {[%clk 0:00:20]}  Kc8 {[%clk 0:00:16]} 58. Kc4 {[%clk 0:00:20]}  Be6+ {[%clk 0:00:15]} 59. Kd3 {[%clk 0:00:20]}  Kc7 {[%clk 0:00:15]} 60. Ke4 {[%clk 0:00:20]}  Kd7 {[%clk 0:00:14]} 61. Ke3 {[%clk 0:00:20]}  Kc7 {[%clk 0:00:14]} 62. Ke4 {[%clk 0:00:20]}  Bf5+ {[%clk 0:00:13]} 63. Ke3 {[%clk 0:00:21]}  Bc2 {[%clk 0:00:12]} 64. Be4 {[%clk 0:00:20]}  Bd1 {[%clk 0:00:12]} 65. Bxg6 {[%clk 0:00:19]}  Kc6 {[%clk 0:00:13]} 66. Be4+ {[%clk 0:00:19]}  Kb5 {[%clk 0:00:14]} 67. g6 {[%clk 0:00:20]}  Bb3 {[%clk 0:00:13]} 68. g7 {[%clk 0:00:20]}  Kxb4 {[%clk 0:00:14]} 69. Bh7 {[%clk 0:00:21]}  Kxc5 {[%clk 0:00:14]} 70. g8=Q {[%clk 0:00:21]}  Bxg8 {[%clk 0:00:14]} 71. Bxg8 {[%clk 0:00:22]}  Kb5 {[%clk 0:00:15]} 72. Bf7 {[%clk 0:00:23]}  Kxa5 {[%clk 0:00:16]} 73. Bxh5 {[%clk 0:00:24]}  Kb6 {[%clk 0:00:16]} 74. Bf7 {[%clk 0:00:24]}  Kc7 {[%clk 0:00:16]} 75. g4 {[%clk 0:00:25]}  Kd6 {[%clk 0:00:17]} 76. Ke4 {[%clk 0:00:26]}  Ke7 {[%clk 0:00:18]} 77. Bd5 {[%clk 0:00:26]}  Kf6 {[%clk 0:00:18]} 78. Bxb7 {[%clk 0:00:26]}  a5 {[%clk 0:00:19]} 79. Bc6 {[%clk 0:00:26]}  Kg5 {[%clk 0:00:19]} 80. Kf3 {[%clk 0:00:26]}  Kf6 {[%clk 0:00:18]} 81. Be4 {[%clk 0:00:25]}  a4 {[%clk 0:00:19]} 82. Bb1 {[%clk 0:00:25]}  a3 {[%clk 0:00:19]} 83. Kg3 {[%clk 0:00:24]}  Kg5 {[%clk 0:00:19]} 84. Ba2 {[%clk 0:00:24]}  e4 {[%clk 0:00:19]} 85. Bb1 {[%clk 0:00:24]}  e3 {[%clk 0:00:19]} 86. Kf3 {[%clk 0:00:24]}  e2 {[%clk 0:00:19]} 87. Kxe2 {[%clk 0:00:25]}  Kxg4 {[%clk 0:00:20]} 88. Kd3 {[%clk 0:00:25]}  a2 {[%clk 0:00:20]} 89. Kc3 {[%clk 0:00:24]}  axb1=Q {[%clk 0:00:20]} 0-1

[Event "January 9 Late 2024"]
[Site "https://www.chess.com"]
[Date "2024.01.09"]
[Round "2"]
[White "Harrington, Steve"]
[Black "Shohat, Yotam"]
[Result "0-1"]
[Board "227"]
[TimeControl "180+1"]
[WhiteFideId "2038730"]
[BlackFideId "2813955"]
[WhiteElo "2132"]
[BlackElo "2469"]
[WhiteTeam "USA"]
[BlackTeam "ISR"]
[WhiteClock "0:00:00"]
[BlackClock "0:00:24"]

1. e4 {[%clk 0:03:00]}  e5 {[%clk 0:03:00]} 2. d4 {[%clk 0:03:00]}  exd4 {[%clk 0:03:00]} 3. Nf3 {[%clk 0:02:59]}  Nc6 {[%clk 0:03:00]} 4. Nxd4 {[%clk 0:02:58]}  Bc5 {[%clk 0:03:00]} 5. Be3 {[%clk 0:02:56]}  Qf6 {[%clk 0:03:00]} 6. Nb5 {[%clk 0:02:56]}  Bxe3 {[%clk 0:02:59]} 7. fxe3 {[%clk 0:02:57]}  Qh4+ {[%clk 0:02:26]} 8. g3 {[%clk 0:02:56]}  Qxe4 {[%clk 0:02:26]} 9. Nxc7+ {[%clk 0:02:50]}  Kd8 {[%clk 0:02:23]} 10. Nxa8 {[%clk 0:02:51]}  Qxh1 {[%clk 0:02:23]} 11. Nc3 {[%clk 0:02:51]}  Nf6 {[%clk 0:02:18]} 12. Qd6 {[%clk 0:02:38]}  Qf3 {[%clk 0:02:17]} 13. Be2 {[%clk 0:02:36]}  Qxe3 {[%clk 0:02:14]} 14. Rd1 {[%clk 0:02:19]}  Qg1+ {[%clk 0:01:57]} 15. Bf1 {[%clk 0:02:02]}  Re8+ {[%clk 0:01:55]} 16. Ne2 {[%clk 0:02:02]}  Qe3 {[%clk 0:01:43]} 17. Rd3 {[%clk 0:01:56]}  Qe6 {[%clk 0:01:41]} 18. Qf4 {[%clk 0:01:32]}  Qe5 {[%clk 0:01:35]} 19. Qf3 {[%clk 0:01:13]}  Qe4 {[%clk 0:01:30]} 20. Qf2 {[%clk 0:01:08]}  Nb4 {[%clk 0:01:23]} 21. Rc3 {[%clk 0:00:48]}  Nxc2+ {[%clk 0:01:19]} 22. Kd2 {[%clk 0:00:43]}  Nb4 {[%clk 0:00:54]} 23. Qxa7 {[%clk 0:00:11]}  Nfd5 {[%clk 0:00:55]} 24. Qa5+ {[%clk 0:00:07]}  Ke7 {[%clk 0:00:44]} 25. Nc7 {[%clk 0:00:06]}  b6 {[%clk 0:00:37]} 26. Qb5 {[%clk 0:00:04]}  Nxc3 {[%clk 0:00:30]} 27. bxc3 {[%clk 0:00:03]}  Qc2+ {[%clk 0:00:26]} 28. Ke1 {[%clk 0:00:03]}  Nd3+ {[%clk 0:00:25]} 29. Qxd3 {[%clk 0:00:01]}  Qxd3 {[%clk 0:00:26]} 30. Nxe8 {[%clk 0:00:02]}  Kxe8 {[%clk 0:00:25]} 31. Kf2 {[%clk 0:00:00]}  Ba6 {[%clk 0:00:24]} 0-1

[Event "January 9 Late 2024"]
[Site "https://www.chess.com"]
[Date "2024.01.09"]
[Round "2"]
[White "Ghosh, Chanchal Kumer"]
[Black "Reprintsev, Alexander"]
[Result "0-1"]
[Board "231"]
[TimeControl "180+1"]
[WhiteFideId "10201858"]
[BlackFideId "14100541"]
[WhiteElo "2105"]
[BlackElo "2464"]
[WhiteTeam "BAN"]
[BlackTeam "UKR"]
[WhiteClock "0:00:00"]
[BlackClock "0:01:13"]

1. e4 {[%clk 0:02:49]}  d5 {[%clk 0:02:59]} 2. exd5 {[%clk 0:02:44]}  Qxd5 {[%clk 0:02:59]} 3. Nc3 {[%clk 0:02:43]}  Qa5 {[%clk 0:02:58]} 4. d4 {[%clk 0:02:43]}  Nf6 {[%clk 0:02:54]} 5. Bc4 {[%clk 0:02:42]}  Nc6 {[%clk 0:02:53]} 6. h3 {[%clk 0:02:29]}  Be6 {[%clk 0:02:46]} 7. Bxe6 {[%clk 0:02:24]}  fxe6 {[%clk 0:02:40]} 8. Nf3 {[%clk 0:02:22]}  O-O-O {[%clk 0:02:39]} 9. Bd2 {[%clk 0:02:16]}  Qa6 {[%clk 0:02:24]} 10. Ne2 {[%clk 0:01:42]}  e5 {[%clk 0:02:17]} 11. dxe5 {[%clk 0:01:35]}  Ne4 {[%clk 0:02:17]} 12. O-O {[%clk 0:01:29]}  Nxe5 {[%clk 0:02:15]} 13. Ned4 {[%clk 0:00:52]}  Nxd2 {[%clk 0:02:06]} 14. Qxd2 {[%clk 0:00:39]}  Nxf3+ {[%clk 0:02:05]} 15. gxf3 {[%clk 0:00:39]}  e5 {[%clk 0:02:03]} 16. c3 {[%clk 0:00:29]}  exd4 {[%clk 0:02:00]} 17. cxd4 {[%clk 0:00:30]}  Bd6 {[%clk 0:01:59]} 18. Rac1 {[%clk 0:00:27]}  Rhf8 {[%clk 0:01:58]} 19. Rfe1 {[%clk 0:00:24]}  Rxf3 {[%clk 0:01:56]} 20. Qg5 {[%clk 0:00:20]}  Rf6 {[%clk 0:01:51]} 21. Kh1 {[%clk 0:00:17]}  Rxf2 {[%clk 0:01:45]} 22. Qg4+ {[%clk 0:00:14]}  Kb8 {[%clk 0:01:44]} 23. Re4 {[%clk 0:00:10]}  Rh2+ {[%clk 0:01:42]} 24. Kg1 {[%clk 0:00:11]}  Rxb2 {[%clk 0:01:42]} 25. Rce1 {[%clk 0:00:10]}  Qc6 {[%clk 0:01:32]} 26. Qf3 {[%clk 0:00:05]}  a6 {[%clk 0:01:27]} 27. d5 {[%clk 0:00:05]}  Bc5+ {[%clk 0:01:25]} 28. Kh1 {[%clk 0:00:04]}  Qd6 {[%clk 0:01:25]} 29. Re5 {[%clk 0:00:02]}  Rxa2 {[%clk 0:01:22]} 30. R1e2 {[%clk 0:00:01]}  Rxe2 {[%clk 0:01:20]} 31. Qxe2 {[%clk 0:00:02]}  Qh6 {[%clk 0:01:17]} 32. Kg2 {[%clk 0:00:01]}  Rd6 {[%clk 0:01:12]} 33. Re8+ {[%clk 0:00:01]}  Ka7 {[%clk 0:01:13]} 34. Re5 {[%clk 0:00:01]}  Rg6+ {[%clk 0:01:13]} 35. Kh2 {[%clk 0:00:00]}  Qf4+ {[%clk 0:01:13]} 0-1

[Event "January 9 Late 2024"]
[Site "https://www.chess.com"]
[Date "2024.01.09"]
[Round "2"]
[White "Balla, Tamas-Kristof"]
[Black "Yushko, Olga"]
[Result "0-1"]
[Board "232"]
[TimeControl "180+1"]
[WhiteFideId "1208497"]
[BlackFideId "14114500"]
[WhiteElo "2463"]
[BlackElo "2103"]
[WhiteTeam "ROU"]
[BlackTeam "UKR"]
[WhiteClock "0:00:33"]
[BlackClock "0:00:46"]

1. e4 {[%clk 0:03:00]}  e6 {[%clk 0:02:59]} 2. d4 {[%clk 0:03:00]}  d5 {[%clk 0:02:59]} 3. Nd2 {[%clk 0:03:00]}  Nf6 {[%clk 0:02:59]} 4. e5 {[%clk 0:03:01]}  Nfd7 {[%clk 0:02:59]} 5. Bd3 {[%clk 0:03:01]}  c5 {[%clk 0:03:00]} 6. c3 {[%clk 0:03:02]}  Nc6 {[%clk 0:03:00]} 7. Ne2 {[%clk 0:03:02]}  Qb6 {[%clk 0:03:00]} 8. Nf3 {[%clk 0:03:01]}  cxd4 {[%clk 0:03:00]} 9. cxd4 {[%clk 0:03:02]}  Be7 {[%clk 0:02:58]} 10. O-O {[%clk 0:03:02]}  O-O {[%clk 0:02:59]} 11. Bg5 {[%clk 0:02:51]}  h6 {[%clk 0:02:54]} 12. Bxe7 {[%clk 0:02:50]}  Nxe7 {[%clk 0:02:55]} 13. Rc1 {[%clk 0:02:46]}  f6 {[%clk 0:02:49]} 14. Bb1 {[%clk 0:02:35]}  Qxb2 {[%clk 0:02:42]} 15. Qd3 {[%clk 0:02:30]}  f5 {[%clk 0:02:41]} 16. Nc3 {[%clk 0:02:27]}  Re8 {[%clk 0:02:22]} 17. Nb5 {[%clk 0:02:24]}  Nb6 {[%clk 0:02:06]} 18. Nc7 {[%clk 0:02:08]}  Bd7 {[%clk 0:02:06]} 19. Nxa8 {[%clk 0:01:59]}  Bb5 {[%clk 0:02:04]} 20. Qd1 {[%clk 0:01:45]}  Bxf1 {[%clk 0:01:49]} 21. Nc7 {[%clk 0:01:43]}  Be2 {[%clk 0:01:47]} 22. Qc2 {[%clk 0:01:16]}  Qxc2 {[%clk 0:01:46]} 23. Bxc2 {[%clk 0:01:13]}  Rc8 {[%clk 0:01:41]} 24. Nxe6 {[%clk 0:01:11]}  Bxf3 {[%clk 0:01:29]} 25. gxf3 {[%clk 0:01:08]}  Rc3 {[%clk 0:01:26]} 26. Kf1 {[%clk 0:00:55]}  Nc6 {[%clk 0:01:25]} 27. Ke2 {[%clk 0:00:54]}  Kf7 {[%clk 0:01:24]} 28. Nf4 {[%clk 0:00:54]}  Nxd4+ {[%clk 0:01:19]} 29. Kd2 {[%clk 0:00:46]}  Rxf3 {[%clk 0:01:12]} 30. Nd3 {[%clk 0:00:46]}  Nc4+ {[%clk 0:01:08]} 31. Kc3 {[%clk 0:00:46]}  Ne2+ {[%clk 0:01:08]} 32. Kb4 {[%clk 0:00:41]}  Nxc1 {[%clk 0:01:04]} 33. Nxc1 {[%clk 0:00:42]}  a5+ {[%clk 0:01:04]} 34. Kc5 {[%clk 0:00:41]}  Rxf2 {[%clk 0:00:57]} 35. Bb3 {[%clk 0:00:39]}  Nxe5 {[%clk 0:00:51]} 36. Kxd5 {[%clk 0:00:37]}  Ng4 {[%clk 0:00:51]} 37. Kd6+ {[%clk 0:00:37]}  Kf6 {[%clk 0:00:50]} 38. Nd3 {[%clk 0:00:35]}  Rd2 {[%clk 0:00:48]} 39. Bc4 {[%clk 0:00:33]}  Ne5 {[%clk 0:00:46]} 0-1